[Event "German Bundesliga 2022-23"]
[Site "Germany"]
[Date "2022.11.26"]
[Round "3.10"]
[White "Brkic, Ante"]
[Black "Ivanisevic, Ivan"]
[Result "1-0"]
[ECO "C72"]
[WhiteElo "2610"]
[BlackElo "2533"]
[Annotator "TA"]
[PlyCount "61"]
[EventDate "2022.10.21"]
[EventType "team-tourn"]
[EventCountry "GER"]
[SourceTitle "playchess.com"]
[Source "ChessBase"]
[SourceQuality "1"]
[TimeControl "40/6000+30:3000+30"]

{[%evp 18,61,43,33,45,36,41,42,40,39,41,42,37,44,70,75,60,64,76,38,47,37,41,33,73,95,91,80,81,70,300,303,290,289,427,366,372,369,663,639,639,508,1079,992,1266,812]} 1. e4 {[%emt 0:00:03]} e5 {[%emt 0:00:06]} 2. Nf3 {[%emt 0:00:06]} Nc6 {[%emt 0:00:05]} 3. Bb5 {[%emt 0:00:04]} a6 {[%emt 0:00:06]} 4. Ba4 {[%emt 0:00:05]} d6 {[%emt 0:00:16]} 5. O-O {[%emt 0:01:48]} Bd7 {[%emt 0:05:46]} 6. c4 {[%emt 0:02:37]} Nf6 {[%emt 0:06:18]} 7. Nc3 {[%emt 0:01:44]} Be7 {[%emt 0:00:14][%cal Bf8e7,Be7f6,Bf6e5][%mdl 32]} 8. Bxc6 {[%emt 0:03:25]} Bxc6 {[%emt 0:02:30]} 9. Re1 {[%emt 0:03:30]} O-O {[%emt 0:01:38]} 10. d4 {[%emt 0:00:10]} exd4 {[%emt 0:04:06] C72: Ruy Lopez: Deferred Steinitz: 5 0-0.} 11. Nxd4 {[%emt 0:00:08]} Nd7 {[%emt 0:00:06]} 12. Be3 {[%emt 0:09:56]} Bf6 {[%emt 0:02:56] White is slightly better.} 13. b3 {[%emt 0:08:04]} Re8 {[%emt 0:04:42] [#]} 14. Qc2 $146 {[%emt 0:03:27]} ({Predecessor:} 14. f3 Ne5 15. a4 Ng6 16. Qd2 Be5 17. Qf2 Nf4 18. Rad1 Bd7 19. Kh1 c5 20. Nde2 Nxe2 21. Nxe2 {1-0 (59) Niedbala,B (2381)-Moroni,L (2584) Piestany 2022}) 14... Be5 {[%emt 0:21:28]} 15. Rad1 {[%emt 0:08:17]} (15. Rac1 {with more complications.} Qh4 16. Nf3 Qg4 17. Nd5) 15... Qf6 {[%emt 0:20:59]} 16. Nd5 {[%emt 0:21:01]} Bxd5 {[%emt 0:01:55]} 17. cxd5 {[%emt 0:00:05]} Rac8 {[%emt 0:00:39]} 18. Qd2 {[%emt 0:12:06]} Qh4 {[%emt 0:07:23]} 19. f4 {[%emt 0:02:35] [#] Black must now prevent Nf5.} Bxd4 {[%emt 0:00:06]} 20. Bxd4 {[%emt 0:00:04]} Nf6 {[%emt 0:00:07]} 21. e5 {[%emt 0:02:21]} dxe5 {[%emt 0:04:51]} (21... Nxd5 $2 22. Bf2 Qxf4 23. Qxd5 $18) 22. fxe5 {[%emt 0:00:13]} (22. g3 $6 Qh5 23. Bxe5 Nd7 $11) 22... Nd7 {[%emt 0:01:08]} (22... Nxd5 $2 23. Bf2 Qd8 24. Qxd5 $18) 23. Bb2 {[%emt 0:05:01]} Qh5 $2 {[%emt 0:04:34] [#] Black cannot hold the game after this.} (23... Qe7 $14) 24. e6 $18 {[%emt 0:03:17]} fxe6 {[%emt 0:02:40]} 25. dxe6 {[%emt 0:00:15]} Nf8 {[%emt 0:01:20]} (25... Nf6 $142 26. Bxf6 gxf6) 26. Re5 {[%emt 0:06:15]} Qh6 {[%emt 0:03:01]} 27. e7 {[%emt 0:01:49]} Ng6 {[%emt 0:03:02]} (27... Qxd2 28. exf8=R+ (28. Rxd2 Ng6 $11) 28... Rxf8 29. Rxd2 Rcd8) 28. Qd5+ {[%emt 0:01:03] White is clearly winning.} Kh8 {[%emt 0:00:04]} 29. Re6 {[%emt 0:02:19]} Qh4 {[%emt 0:07:25]} (29... Nf4 $142) 30. Rd4 {[%emt 0:01:25]} Nf4 {[%emt 0:04:42]} 31. Qe5 {[%emt 0:00:37] Weighted Error Value: White=0.18 (very precise) /Black=0.58} ({Inferior is} 31. Qxb7 Qg4 32. Re1 (32. Rxa6 $2 {too greedy.} Ne2+ 33. Kh1 Nxd4 $19) (32. Rxf4 Qxe6 33. Re4 Qb6+ 34. Qxb6 cxb6 $15) 32... Nh3+ 33. Kh1 Nf2+ 34. Kg1 Nh3+ 35. Kh1 Nf2+ 36. Kg1 Nh3+ $11) 1-0

[Event "German Bundesliga 2022-23"]
[Site "Germany"]
[Date "2022.11.26"]
[Round "3.11"]
[White "Pavlidis, Antonios"]
[Black "Georgiadis, Nico"]
[Result "1/2-1/2"]
[ECO "C47"]
[WhiteElo "2551"]
[BlackElo "2577"]
[Annotator "TA"]
[PlyCount "69"]
[EventDate "2022.10.21"]
[EventType "team-tourn"]
[EventCountry "GER"]
[SourceTitle "playchess.com"]
[Source "ChessBase"]
[SourceQuality "1"]
[TimeControl "40/6000+30:3000+30"]

{[%evp 11,69,45,45,12,12,9,10,28,65,58,60,74,68,56,85,83,77,59,70,71,71,68,85,21,47,30,29,13,9,1,50,7,9,0,0,0,0,0,0,0,0,0,0,0,0,0,0,0,0,0,0,0,0,0,0,0,0,0,0,0]} 1. e4 e5 2. Nf3 Nc6 3. Nc3 Nf6 4. d4 exd4 5. Nxd4 Nxe4 6. Nxe4 Qe7 $1 {[#]} 7. Bd3 {[%cal Bf1d3,Bd3c4,Bc4d5][%mdl 32] aiming for Nf5. C47: Scotch Four Knights and Four Knights with 4 g3.} Nxd4 8. O-O d5 {[#]} (8... Ne6 {simplifies} 9. Re1 d5 10. Ng5 h6) 9. Bc4 $1 {[%mdl 64] [#]} Bg4 $146 ({Weaker is} 9... Qxe4 10. Re1 $16) (9... Nf3+ 10. Qxf3) ({Predecessor:} 9... Nf3+ 10. Qxf3 Qxe4 11. Bxd5 Qxf3 12. Bxf3 c6 13. Re1+ Be7 14. Bg5 Be6 15. Bxe7 Kxe7 {1-0 (51) Xiong,J (2688)-Chigaev,M (2631) Chess.com INT 2022}) 10. Qxd4 Qxe4 11. Qxd5 Qxd5 12. Bxd5 O-O-O 13. Bxf7 Bc5 14. Be3 Bxe3 15. fxe3 Rd2 16. Bb3 Rhd8 17. e4 ({White should try} 17. h3 $16 Bh5 18. Be6+ Kb8 19. Bf5) 17... Bh5 18. Rae1 Bg6 19. Re3 a5 20. h3 Kd7 (20... Re8 $11 {feels stronger.}) 21. e5 Ke7 {The position is equal.} 22. a4 b6 23. Rf2 c5 24. g4 h6 25. Kg2 Rxf2+ 26. Kxf2 $11 {[%mdl 4096] Endgame KRB-KRB} Rd2+ 27. Re2 Rd1 28. Bc4 Rb1 29. c3 Be8 30. b3 Bf7 31. e6 Be8 32. Re1 Rb2+ 33. Re2 Rb1 34. Re1 Rb2+ 35. Re2 {Weighted Error Value: White=0.09 (flawless) /Black=0.05 (flawless)} 1/2-1/2

[Event "German Bundesliga 2022-23"]
[Site "Germany"]
[Date "2022.11.26"]
[Round "3.11"]
[White "Plenca, Julijan"]
[Black "Markus, Robert"]
[Result "0-1"]
[ECO "C02"]
[WhiteElo "2437"]
[BlackElo "2608"]
[Annotator "TA"]
[PlyCount "90"]
[EventDate "2022.10.21"]
[EventType "team-tourn"]
[EventCountry "GER"]
[SourceTitle "playchess.com"]
[Source "ChessBase"]
[SourceQuality "1"]
[TimeControl "40/6000+30:3000+30"]

{[%evp 13,90,0,9,0,0,0,6,12,1,-7,0,0,0,-8,-28,-10,0,0,0,0,0,0,0,-16,-3,-18,0,0,0,0,0,0,17,16,17,0,16,0,0,0,0,0,0,0,21,26,22,0,68,37,69,52,64,67,76,81,29988,-528,-451,-721,-689,-2190,-2247,-12836,-12829,-9132,-6825,-2646,-2956,-12835,-12835,-29980,-29971,-29971,-29972,-12839,-12839,-29986,-29987]} 1. e4 {[%emt 0:00:01]} e6 {[%emt 0:00:15]} 2. d4 {[%emt 0:00:22]} d5 {[%emt 0:00:10]} 3. e5 {[%emt 0:00:52]} c5 {[%emt 0:00:09]} 4. c3 {[%emt 0:00:30]} Nc6 {[%emt 0:00:08]} 5. Nf3 {[%emt 0:00:28]} Bd7 {[%emt 0:02:03]} 6. Be2 {[%emt 0:03:12]} Nge7 {[%emt 0:00:14]} 7. Na3 {[%emt 0:03:51]} Ng6 {[%emt 0:04:14]} 8. h4 {[%emt 0:11:42][%cal Bh2h4,Bh4h5,Bh5h6][%mdl 32] C02: French: Advance Variation.} cxd4 {[%emt 0:04:58]} 9. cxd4 {[%emt 0:00:30]} Be7 {[%emt 0:00:08]} 10. Nb5 {[%emt 0:06:58] The position is equal.} O-O {[%emt 0:09:46]} (10... Bxh4 11. Nd6+ Kf8 12. Nxb7 $16) (10... Nxh4 11. Nxh4 Bxh4 12. Nd6+ Kf8 13. Nxb7 $16) 11. h5 {[%emt 0:07:11]} (11. Nc3 {simplifies} f6 12. h5 Nh8 13. exf6 Bxf6 14. Be3) 11... Nh4 {[%emt 0:07:40]} 12. Nxh4 {[%emt 0:01:38]} Bxh4 {[%emt 0:00:07]} 13. h6 {[%emt 0:03:07] Threatens to win with hxg7.} g6 {[%emt 0:00:15]} 14. O-O {[%emt 0:01:32]} Be7 {[%emt 0:09:33]} 15. Be3 {[%emt 0:06:04] [#]} f6 $146 {[%emt 0:06:06]} ({Predecessor:} 15... a6 16. Nc3 Na5 17. Rc1 Rc8 18. Qd2 Nc4 19. Bxc4 Rxc4 20. Rc2 Qa5 21. Bg5 Bxg5 22. Qxg5 {½-½ (32) Hasche,M-Davidov,D DESC email 2015}) 16. exf6 {[%emt 0:02:21]} Bxf6 {[%emt 0:00:13]} 17. Qd2 {[%emt 0:00:48]} Ne7 {[%emt 0:20:03]} 18. Nc3 {[%emt 0:15:31]} Nf5 {[%emt 0:00:07]} 19. Bg4 {[%emt 0:00:20]} Bh8 {[%emt 0:00:07]} 20. g3 {[%emt 0:05:49] Against Qh4} Qb6 {[%emt 0:00:21]} 21. Rad1 {[%emt 0:01:53]} Rac8 {[%emt 0:06:00]} 22. Rfe1 {[%emt 0:01:59]} Rc4 {[%emt 0:00:47]} 23. Bxf5 {[%emt 0:03:26]} Rxf5 {[%emt 0:00:19]} 24. b3 {[%emt 0:01:25][%cal Bb2b3,Bb3a4,Ba4a5][%mdl 32]} Rc8 {[%emt 0:00:58]} 25. Na4 {[%emt 0:04:27]} Bxa4 {[%emt 0:06:45]} 26. bxa4 {[%emt 0:00:13]} Rc4 {[%emt 0:00:06]} 27. a5 {[%emt 0:02:49]} Qc6 {[%emt 0:00:55]} 28. Qe2 {[%emt 0:01:20]} e5 {[%emt 0:07:51]} 29. dxe5 {[%emt 0:06:54]} Rxe5 {[%emt 0:00:13][%cal Od5d4] aiming for ...d4!} 30. Qf1 {[%emt 0:01:44] Prevents d4.} d4 {[%emt 0:07:56]} (30... Rh5 $1 $11) 31. Bf4 $1 $14 {[%emt 0:05:03]} Rxe1 {[%emt 0:02:14]} (31... Rxa5 $2 32. Re8+ $3 {[%mdl 512]} Qxe8 33. Qxc4+ Qf7 34. Qc8+ Qf8 35. Qxb7 $18) 32. Rxe1 {[%emt 0:00:35]} Bf6 $1 {[%emt 0:00:50]} 33. a6 {[%emt 0:01:33]} (33. Re8+ {is more complex.} Kf7 34. a6 Rc5 35. Ra8) 33... b5 {[%emt 0:03:31]} (33... bxa6 34. Re8+ $1 Qxe8 35. Qxc4+ Qf7 36. Qxa6 $16) (33... Qxa6 $2 34. Bd6 Rc6 35. Re8+ Kf7 36. Rf8+ Ke6 37. Qe1+ Kxd6 38. Rxf6+ Kc5 39. Rf7 $18) 34. Qe2 {[%emt 0:05:43][%cal Oa2a4]} (34. Qd3 $5 {[%cal Rd3b3]}) 34... Kf7 $2 {[%emt 0:01:23][%mdl 8192] [#] Prevents a4.} (34... Rc2 $16 35. Qd3 Qc4) 35. Be5 $4 {[%emt 0:00:28][%mdl 8192] [#]} (35. Bd6 $1 {[%mdl 512] was the only winning move.} Qd7 36. Qe4 $1 Be7 37. Qd5+ Kf8 38. Bxe7+ Qxe7 39. Qa8+ Kf7 40. Rxe7+ Kxe7 41. Qxa7+ Kd6 42. Qxh7) 35... Rc2 $1 $19 {[%emt 0:02:55]} (35... Qxa6 36. Bxf6 Qd6 37. Be7 d3 38. Qf3+) 36. Qf1 {[%emt 0:01:23]} (36. Qe4 $142 Qxe4 37. Rxe4) 36... Bxe5 {[%emt 0:01:19]} (36... Rxa2 37. Bxf6 Kxf6 38. Qh3 $11) 37. Rxe5 {[%emt 0:00:04][%mdl 4096] Endgame [#] KQR-KQR} d3 $1 {[%emt 0:00:20][%cal Bd4d3,Bd3d2][%mdl 32] ( -> ...Rc1)} ({And not} 37... Rxa2 38. Rxb5 Rxa6 39. Re5 $11) 38. Kh2 {[%emt 0:01:21]} Rc1 {[%emt 0:05:24]} ({Not} 38... Rxa2 39. Re3 $11) 39. Re1 {[%emt 0:00:05]} d2 {[%emt 0:00:07]} 40. Rd1 {[%emt 0:00:03]} g5 {[%emt 0:02:42]} ({Weaker is} 40... Qxa6 41. Rxc1 dxc1=N 42. Qxc1 Qxa2 43. Qc7+ Kf6 44. Qd8+ Kf7 45. Qd7+ Kf6 46. Kg2 $11) (40... Qc2 41. Qxb5 Kf6 42. Qd5 Rxd1 43. Qd6+ Kf7 44. Qd7+ Kf8 45. Qd8+ Kf7 46. Qd7+ Kf6 47. Qd6+ Kf5 48. Qd5+ Kf6 49. Qd6+ $11) 41. Qd3 {[%emt 0:51:24]} Rxd1 {[%emt 0:03:02][%csl Gd1][%cal Rc6h1]} 42. Qxh7+ {[%emt 0:00:00]} Ke8 {[%emt 0:00:05][%csl Gc6][%cal Rd1h1]} 43. Qg8+ {[%emt 0:00:00]} Kd7 {[%emt 0:00:09][%csl Gc6][%cal Rd1h1]} 44. Qf7+ {[%emt 0:00:00]} Kc8 {[%emt 0:00:41][%csl Gc6][%cal Rd1h1]} 45. Qg8+ {[%emt 0:00:00]} Kc7 {[%emt 0:00:17] Weighted Error Value: White=0.95/Black=0.20 (precise)} 0-1

[Event "German Bundesliga 2022-23"]
[Site "Germany"]
[Date "2022.11.26"]
[Round "3.12"]
[White "Alonso Rosell, Alvar"]
[Black "Burg, Twan"]
[Result "1/2-1/2"]
[ECO "D78"]
[WhiteElo "2563"]
[BlackElo "2519"]
[Annotator "TA"]
[PlyCount "91"]
[EventDate "2022.10.21"]
[EventType "team-tourn"]
[EventCountry "GER"]
[SourceTitle "playchess.com"]
[Source "ChessBase"]
[SourceQuality "1"]
[TimeControl "40/6000+30:3000+30"]

{[%evp 13,91,5,35,4,11,11,1,10,5,6,6,7,26,12,28,18,8,0,23,33,22,16,22,23,21,24,33,20,30,22,19,17,16,12,14,10,19,13,9,8,16,5,16,10,17,10,17,12,16,17,17,17,16,16,16,18,18,14,18,0,11,14,12,0,8,0,9,7,6,0,0,0,0,0,0,0,0,0,0,0]} 1. Nf3 {[%emt 0:00:08]} d5 {[%emt 0:00:35]} 2. g3 {[%emt 0:01:14]} g6 {[%emt 0:00:18]} 3. Bg2 {[%emt 0:00:46]} Bg7 {[%emt 0:00:05]} 4. d4 {[%emt 0:00:06]} Nf6 {[%emt 0:00:09]} 5. O-O {[%emt 0:01:58]} O-O {[%emt 0:00:10]} 6. c4 {[%emt 0:00:06]} c6 {[%emt 0:01:14]} 7. Qb3 {[%emt 0:01:01]} a5 {[%emt 0:08:45]} 8. cxd5 {[%emt 0:00:28] D78: Fianchetto Grünfeld: 6 0-0 c6.} a4 {[%emt 0:01:30]} 9. Qd1 {[%emt 0:00:06]} cxd5 {[%emt 0:01:31]} 10. Nc3 {[%emt 0:00:06]} Qa5 {[%emt 0:07:24]} 11. Bd2 {[%emt 0:00:40]} Nc6 {[%emt 0:14:18]} 12. e3 {[%emt 0:00:33]} e6 {[%emt 0:07:45] [#]} 13. Qe2 $146 {[%emt 0:05:17]} ({Predecessor:} 13. Rc1 Qa6 14. Re1 Bd7 15. Bf1 Qa7 16. Ne5 Nxe5 17. dxe5 Ne8 18. Nxd5 exd5 19. Bb4 {0-1 (39) Ftacnik,L (2501)-Vogel,R (2447) Germany 2022}) 13... Qd8 {[%emt 0:09:11]} 14. Rfc1 {[%emt 0:19:56]} Bd7 {[%emt 0:00:14]} 15. Ne1 {[%emt 0:01:19][%cal Bf3e1,Be1d3,Bd3c5][%mdl 32]} Ne8 {[%emt 0:15:26]} 16. Nd3 {[%emt 0:10:34]} Nd6 {[%emt 0:00:22]} 17. Nc5 {[%emt 0:03:13]} b6 {[%emt 0:00:28]} 18. Nxd7 {[%emt 0:15:03]} Qxd7 {[%emt 0:00:22]} 19. Be1 {[%emt 0:00:39]} Rfc8 {[%emt 0:04:10]} 20. Rab1 {[%emt 0:02:55]} Bf8 {[%emt 0:00:18]} 21. Bf1 {[%emt 0:12:28]} Na5 {[%emt 0:05:37] The position is equal.} 22. Qd1 {[%emt 0:05:58]} Nac4 {[%emt 0:02:54]} 23. b3 {[%emt 0:01:41]} axb3 {[%emt 0:00:05]} 24. axb3 {[%emt 0:00:09]} Na5 {[%emt 0:00:06]} 25. Na4 {[%emt 0:04:08]} Qb7 {[%emt 0:00:20]} 26. Bd3 {[%emt 0:07:31]} Rxc1 {[%emt 0:03:08]} 27. Rxc1 {[%emt 0:00:32]} Rc8 {[%emt 0:01:26]} 28. Ra1 {[%emt 0:01:03][%cal Oa4b6]} Nc6 {[%emt 0:01:36]} 29. Qe2 {[%emt 0:02:08] [#] aiming for Ba6.} Nb8 {[%emt 0:02:12] Inhibits Ba6.} 30. Nc3 {[%emt 0:01:38]} Nc6 {[%emt 0:05:17]} 31. Ba6 {[%emt 0:06:25]} Qa7 {[%emt 0:00:07]} 32. Ra4 {[%emt 0:02:13]} Ra8 {[%emt 0:01:52]} 33. Nb5 {[%emt 0:02:26]} Nxb5 {[%emt 0:02:46]} 34. Bxb5 {[%emt 0:00:08]} Qb7 {[%emt 0:00:06]} 35. Qa2 {[%emt 0:02:28]} Rxa4 {[%emt 0:00:44]} 36. Qxa4 {[%emt 0:00:03]} Na7 {[%emt 0:01:34]} 37. Bd3 {[%emt 0:01:15]} Nc6 {[%emt 0:03:17]} 38. Bb5 {[%emt 0:00:08]} Na7 {[%emt 0:00:18]} 39. Bd3 {[%emt 0:00:01]} Nc6 {[%emt 0:00:10]} 40. h4 {[%emt 0:01:05]} h5 {[%emt 0:00:52]} 41. Bb5 {[%emt 0:16:30]} Na7 {[%emt 0:00:15]} 42. Be2 {[%emt 0:01:29]} Nc6 {[%emt 0:02:12]} 43. Qb5 {[%emt 0:07:08]} Be7 {[%emt 0:03:34]} 44. Bc3 {[%emt 0:02:44]} Qc7 {[%emt 0:03:43]} 45. Kg2 {[%emt 0:08:23]} Na5 {[%emt 0:06:48]} 46. Bxa5 {[%emt 0:07:49] A balanced but interesting game.   Weighted Error Value: White=0.04 (flawless) /Black=0.04 (flawless)} 1/2-1/2

[Event "German Bundesliga 2022-23"]
[Site "Germany"]
[Date "2022.11.26"]
[Round "3.12"]
[White "Stevic, Hrvoje"]
[Black "Koelle, Tobias"]
[Result "1/2-1/2"]
[ECO "B22"]
[WhiteElo "2543"]
[BlackElo "2430"]
[Annotator "TA"]
[PlyCount "191"]
[EventDate "2022.10.21"]
[EventType "team-tourn"]
[EventCountry "GER"]
[SourceTitle "playchess.com"]
[Source "ChessBase"]
[SourceQuality "1"]
[TimeControl "40/6000+30:3000+30"]

{[%evp 14,191,14,3,2,-11,-19,-32,31,26,28,30,35,27,37,35,31,29,54,58,60,60,57,54,83,71,88,71,71,61,92,70,92,93,91,93,86,71,71,72,74,70,64,68,110,110,110,110,110,110,110,110,110,110,110,110,110,110,110,110,110,110,110,110,110,110,110,110,110,0,30,0,110,110,110,110,110,110,110,110,110,110,110,110,110,110,110,110,110,110,110,110,110,110,110,110,110,35,57,64,71,71,100,0,0,0,0,0,0,0,0,0,0,0,0,0,0,0,0,0,0,0,0,0,0,0,0,0,0,0,0,0,0,0,0,0,0,0,0,0,0,0,0,0,0,0,0,0,0,0,0,0,0,0,0,0,0,0,0,0,0,0,0,0,0,0,0,0,0,0,0,0,0,0,0,0,0,0,0,0]} 1. e4 {[%emt 0:00:03]} c5 {[%emt 0:00:08]} 2. c3 {[%emt 0:00:12]} d5 {[%emt 0:00:10]} 3. exd5 {[%emt 0:00:07]} Qxd5 {[%emt 0:00:04]} 4. d4 {[%emt 0:00:06]} Nf6 {[%emt 0:00:14]} 5. Nf3 {[%emt 0:00:07]} Bg4 {[%emt 0:00:22]} 6. dxc5 {[%emt 0:07:56]} Qxd1+ {[%emt 0:00:05]} 7. Kxd1 {[%emt 0:00:05]} Nc6 {[%emt 0:00:08]} 8. Be3 {[%emt 0:01:16]} Nd5 {[%emt 0:04:35]} 9. Bb5 {[%emt 0:01:22]} e5 {[%emt 0:06:40]} 10. h3 {[%emt 0:04:37]} Bxf3+ {[%emt 0:03:22]} (10... Bd7 $1 $15) 11. gxf3 $14 {[%emt 0:00:23]} Nxe3+ {[%emt 0:01:00]} 12. fxe3 {[%emt 0:00:08]} Bxc5 {[%emt 0:00:40]} 13. Ke2 {[%emt 0:06:13]} O-O-O {[%emt 0:02:37]} 14. Bxc6 {[%emt 0:03:58]} bxc6 {[%emt 0:00:19]} 15. Nd2 {[%emt 0:00:06]} f5 {[%emt 0:13:13]} 16. Nc4 {[%emt 0:18:57]} Rhe8 {[%emt 0:03:26]} 17. Rag1 {[%emt 0:12:19]} Rd7 {[%emt 0:08:51]} 18. h4 {[%emt 0:07:31]} f4 {[%emt 0:05:07]} 19. Rg5 {[%emt 0:01:52]} Bxe3 {[%emt 0:01:19]} 20. Nxe3 {[%emt 0:02:35]} (20. Nxe5 $2 {too greedy.} Rd2+ 21. Ke1 Red8 $19) (20. Rxe5 $2 Rxe5 21. Nxe5 Rd2+ 22. Kf1 Rf2+ 23. Ke1 Rxb2 $19) 20... fxe3 {[%emt 0:00:04]} 21. Kxe3 {[%emt 0:00:07]} Re6 {[%emt 0:10:42]} 22. h5 {[%emt 0:08:07]} g6 {[%emt 0:14:37]} 23. hxg6 {[%emt 0:00:51]} hxg6 {[%emt 0:00:13]} 24. Rhg1 {[%emt 0:07:16]} Rdd6 {[%emt 0:05:29]} 25. R1g2 {[%emt 0:13:55]} Kd7 {[%emt 0:07:01]} 26. Ke4 {[%emt 0:00:07]} Rd1 {[%emt 0:01:46]} 27. Rxg6 {[%emt 0:00:10]} (27. Rxe5 $2 {loses.} Re1+ 28. Kf4 R1xe5 $19) 27... Re1+ {[%emt 0:00:20]} 28. Kd3 {[%emt 0:00:50]} e4+ {[%emt 0:12:35]} 29. fxe4 {[%emt 0:00:18]} R6xe4 {[%emt 0:00:18]} 30. Rh6 {[%emt 0:04:42]} R4e3+ {[%emt 0:03:54]} 31. Kc4 {[%emt 0:02:18]} R1e2 {[%emt 0:01:51]} 32. Rg7+ {[%emt 0:01:00]} Re7 {[%emt 0:00:15]} 33. Rhh7 {[%emt 0:00:06]} Rxg7 {[%emt 0:00:17]} 34. Rxg7+ {[%emt 0:00:05]} Kc8 {[%emt 0:01:21]} 35. Kb3 {[%emt 0:00:05]} Kb8 {[%emt 0:00:05]} 36. a4 {[%emt 0:00:15]} Rh2 {[%emt 0:01:50]} 37. a5 {[%emt 0:03:10]} a6 {[%emt 0:03:03]} 38. Rg4 {[%emt 0:02:14]} Kc7 {[%emt 0:00:33]} 39. Rb4 {[%emt 0:00:25]} Rh5 {[%emt 0:00:39]} 40. Ka4 $1 {[%emt 0:00:04]} Rh1 {[%emt 0:00:12] [#]} 41. Kb3 {[%emt 0:52:55]} (41. Rc4 $1 $16) 41... Rh5 $11 {[%emt 0:02:12]} 42. Ka4 {[%emt 0:00:00]} (42. Ra4 $11) 42... Rh1 $1 $16 {[%emt 0:00:32] [#]} 43. Rc4 $1 {[%emt 0:00:00]} Kd6 {[%emt 0:13:38]} 44. b4 {[%emt 0:00:00]} Ra1+ {[%emt 0:06:45]} 45. Kb3 {[%emt 0:00:00]} Rb1+ {[%emt 0:00:03]} 46. Kc2 {[%emt 0:00:00]} Rh1 {[%emt 0:00:05]} 47. Rd4+ {[%emt 0:00:00]} Kc7 {[%emt 0:00:10]} 48. Kb3 {[%emt 0:00:00]} Rh7 {[%emt 0:00:24]} 49. Kc4 {[%emt 0:00:00]} Rg7 {[%emt 0:00:48]} 50. Rh4 {[%emt 0:00:00]} Rf7 {[%emt 0:00:12]} 51. Rh5 {[%emt 0:00:00]} Rf4+ {[%emt 0:01:04]} 52. Kc5 {[%emt 0:00:00]} Rf7 {[%emt 0:00:03]} 53. Rh3 {[%emt 0:00:00]} Rg7 {[%emt 0:00:30]} 54. Rh4 {[%emt 0:00:00]} Rd7 {[%emt 0:01:28]} 55. c4 {[%emt 0:00:00]} (55. Rg4 $16) 55... Rg7 $14 {[%emt 0:00:40]} 56. Kd4 {[%emt 0:00:00]} Re7 {[%emt 0:09:15]} 57. Rf4 {[%emt 0:00:00]} Rh7 {[%emt 0:00:33]} 58. Ke5 {[%emt 0:00:00]} (58. Rf3 $16) 58... Re7+ $11 {[%emt 0:03:36]} 59. Kf6 {[%emt 0:00:00]} Re1 {[%emt 0:02:40]} 60. c5 {[%emt 0:00:00]} Kd7 {[%emt 0:04:13]} 61. Rd4+ {[%emt 0:00:00]} Kc7 {[%emt 0:00:09]} 62. Rg4 {[%emt 0:00:00]} Rf1+ {[%emt 0:00:29]} 63. Ke5 {[%emt 0:00:00]} Re1+ {[%emt 0:00:50]} 64. Re4 {[%emt 0:00:00]} Rh1 {[%emt 0:00:34]} 65. Kf6 {[%emt 0:00:00]} Rf1+ {[%emt 0:01:24]} 66. Ke7 {[%emt 0:00:00]} Rd1 {[%emt 0:04:21]} 67. Ke8 {[%emt 0:00:00]} Kc8 {[%emt 0:04:56]} 68. Re6 {[%emt 0:00:00]} Kc7 {[%emt 0:01:07]} 69. Re7+ {[%emt 0:00:00]} Kb8 {[%emt 0:01:26]} 70. Rd7 {[%emt 0:00:00]} Rh1 {[%emt 0:00:21]} 71. Rf7 {[%emt 0:00:00]} Rd1 {[%emt 0:00:22]} 72. Ke7 {[%emt 0:00:00]} Rd4 {[%emt 0:01:22]} 73. Ke6 {[%emt 0:00:00]} Rd1 {[%emt 0:00:43]} 74. Re7 {[%emt 0:00:00]} Rd4 {[%emt 0:00:28]} 75. Rh7 {[%emt 0:00:00]} Rd1 {[%emt 0:00:37]} 76. Rd7 {[%emt 0:00:00]} Rh1 {[%emt 0:00:02]} 77. Re7 $1 {[%emt 0:00:00]} Rd1 $1 {[%emt 0:00:06]} 78. Kf7 {[%emt 0:05:48]} Rd4 {[%emt 0:00:15]} 79. Ke8 {[%emt 0:00:17]} Rd1 {[%emt 0:00:10]} 80. Re4 {[%emt 0:00:10]} Kc7 {[%emt 0:00:27]} 81. Kf7 {[%emt 0:00:05]} Rf1+ {[%emt 0:00:25]} 82. Ke6 $1 {[%emt 0:00:11]} Rh1 {[%emt 0:00:35]} 83. Rf4 {[%emt 0:01:11]} Re1+ {[%emt 0:00:14]} 84. Kf6 {[%emt 0:00:07]} Re2 {[%emt 0:00:47]} 85. Rh4 {[%emt 0:00:37]} Rf2+ {[%emt 0:00:04]} 86. Ke5 {[%emt 0:00:03]} Re2+ {[%emt 0:00:03]} 87. Re4 {[%emt 0:00:06]} Rh2 {[%emt 0:00:30]} 88. Kf6 {[%emt 0:00:14]} Rf2+ {[%emt 0:00:08]} 89. Ke7 {[%emt 0:00:12]} Rd2 {[%emt 0:00:10]} 90. Ke8 {[%emt 0:00:09]} Rd1 {[%emt 0:00:28]} 91. Re7+ {[%emt 0:00:06]} Kb8 $1 {[%emt 0:00:05]} 92. Rd7 {[%emt 0:01:21]} Rh1 {[%emt 0:00:04]} 93. Rd8+ {[%emt 0:00:05]} Kc7 {[%emt 0:00:21]} 94. Rd7+ {[%emt 0:00:03]} Kb8 {[%emt 0:00:11]} 95. Rd8+ {[%emt 0:00:02]} Kc7 {[%emt 0:00:05]} 96. Rd7+ {[%emt 0:00:01]} 1/2-1/2